{"text_format":"3","workbook":"xlsx","n_sheets":1,"sheets":["Sheet1"],"not_rendered":{"external_links":1},"read":"whole","date_system":"1900"}

{"sheet":"Sheet1","index":0,"n_rows":154,"n_cols":10,"rows_kept":154}
[{"$nulls":3},"Annexure "]
[]
[null,"Biulding","Serial","Equipment description","Pressure","Year of \nmanufacturer","Asscociated piping\nNorminal bore","Medium"]
[null,{"$f":"'[1]Pressure equipment'!A2","v":"BLD 2"},{"$f":"'[1]Pressure equipment'!B2","v":"A185"},{"$f":"'[1]Pressure equipment'!C2","v":"Pressure Vessel"},{"$f":"'[1]Pressure equipment'!D2","v":"125PSI"},{"$f":"'[1]Pressure equipment'!F2","v":1965},"TBC","Air"]
[null,{"$f":"'[1]Pressure equipment'!A3","v":"BLD 2"},{"$f":"'[1]Pressure equipment'!B3","v":"VL8113"},{"$f":"'[1]Pressure equipment'!C3","v":"Pressure Vessel"},{"$f":"'[1]Pressure equipment'!D3","v":"1050kpa"},{"$f":"'[1]Pressure equipment'!F3","v":1989},"TBC","Air"]
[null,{"$f":"'[1]Pressure equipment'!A4","v":"BLD 2"},{"$f":"'[1]Pressure equipment'!B4","v":"17382 (2236109168)"},{"$f":"'[1]Pressure equipment'!C4","v":"Pressure vessel"},{"$f":"'[1]Pressure equipment'!D4","v":"1100 Kpa"},{"$f":"'[1]Pressure equipment'!F4","v":2010},"TBC","Air"]
[null,{"$f":"'[1]Pressure equipment'!A5","v":"BLD 2"},{"$f":"'[1]Pressure equipment'!B5","v":"372151 (351810)"},{"$f":"'[1]Pressure equipment'!C5","v":"Pressure vessel"},{"$f":"'[1]Pressure equipment'!D5","v":"1150 Kpa"},{"$f":"'[1]Pressure equipment'!F5","v":2008},"TBC","Air"]
[null,{"$f":"'[1]Pressure equipment'!A7","v":"BLD 2C"},{"$f":"'[1]Pressure equipment'!B7","v":"1252"},{"$f":"'[1]Pressure equipment'!C7","v":"Pressure Vessel"},{"$f":"'[1]Pressure equipment'!D7","v":"1000KPA"},{"$f":"'[1]Pressure equipment'!F7","v":1986},"TBC","Air"]
[null,"BLD 2","Not indicated","Hydraulic press","Not indicated","Not indicated","TBC","Oil","To be verified on site"]
[null,{"$f":"'[1]Pressure equipment'!A8","v":"BLD 4"},{"$f":"'[1]Pressure equipment'!B8","v":"A5658-2"},{"$f":"'[1]Pressure equipment'!C8","v":"Pressure Vessel"},{"$f":"'[1]Pressure equipment'!D8","v":"1380KPA"},{"$f":"'[1]Pressure equipment'!F8","v":1968},"TBC","Air"]
[null,{"$f":"'[1]Pressure equipment'!A9","v":"BLD 4"},{"$f":"'[1]Pressure equipment'!B9","v":3205},{"$f":"'[1]Pressure equipment'!C9","v":"Pressure Vessel"},{"$f":"'[1]Pressure equipment'!D9","v":"1380KPA"},{"$f":"'[1]Pressure equipment'!F9","v":1968},"TBC","Air"]
[null,{"$f":"'[1]Pressure equipment'!A10","v":"BLD 6"},{"$f":"'[1]Pressure equipment'!B10","v":"ILA8530"},{"$f":"'[1]Pressure equipment'!C10","v":"Pressure Vessel"},{"$f":"'[1]Pressure equipment'!D10","v":"1380KPA"},{"$f":"'[1]Pressure equipment'!F10","v":1988},"TBC","Air"]
[null,{"$f":"'[1]Pressure equipment'!A11","v":"BLD 6"},{"$f":"'[1]Pressure equipment'!B11","v":"3862"},{"$f":"'[1]Pressure equipment'!C11","v":"Pressure Vessel"},{"$f":"'[1]Pressure equipment'!D11","v":"1380KPA"},{"$f":"'[1]Pressure equipment'!F11","v":1989},"TBC","Air"]
[null,{"$f":"'[1]Pressure equipment'!A13","v":"BLD 7"},{"$f":"'[1]Pressure equipment'!B13","v":"OP20291"},{"$f":"'[1]Pressure equipment'!C13","v":"Pressure Vessel"},{"$f":"'[1]Pressure equipment'!D13","v":"1000KPA"},{"$f":"'[1]Pressure equipment'!F13","v":2008},"TBC","Air"]
[null,{"$f":"'[1]Pressure equipment'!A15","v":"BLD 8"},{"$f":"'[1]Pressure equipment'!B15","v":"A1602"},{"$f":"'[1]Pressure equipment'!C15","v":"Pressure Vessel"},{"$f":"'[1]Pressure equipment'!D15","v":"860KPA"},{"$f":"'[1]Pressure equipment'!F15","v":1965},"TBC","Air"]
[null,{"$f":"'[1]Pressure equipment'!A16","v":"BLD 8"},{"$f":"'[1]Pressure equipment'!B16","v":"2347"},{"$f":"'[1]Pressure equipment'!C16","v":"Pressure Vessel"},{"$f":"'[1]Pressure equipment'!D16","v":"1650KPA"},{"$f":"'[1]Pressure equipment'!F16","v":1949},"TBC","Air"]
[null,{"$f":"'[1]Pressure equipment'!A17","v":"BLD 10"},{"$f":"'[1]Pressure equipment'!B17","v":"J6K40717010"},{"$f":"'[1]Pressure equipment'!C17","v":"Pressure vessel"},{"$f":"'[1]Pressure equipment'!D17","v":"845Kpa"},{"$f":"'[1]Pressure equipment'!F17","v":2014},"TBC","Air"]
[null,{"$f":"'[1]Pressure equipment'!A18","v":"BLD 10"},{"$f":"'[1]Pressure equipment'!B18","v":1482},{"$f":"'[1]Pressure equipment'!C18","v":"Pressure vessel"},{"$f":"'[1]Pressure equipment'!D18","v":"800Kpa"},{"$f":"'[1]Pressure equipment'!F18","v":2014},"TBC","Air"]
[null,{"$f":"'[1]Pressure equipment'!A19","v":"BLD 10"},{"$f":"'[1]Pressure equipment'!B19","v":1483},{"$f":"'[1]Pressure equipment'!C19","v":"Pressure vessel"},{"$f":"'[1]Pressure equipment'!D19","v":"800 kPA"},{"$f":"'[1]Pressure equipment'!F19","v":2014},"TBC","Air"]
[null,{"$f":"'[1]Pressure equipment'!A20","v":"BLD 12"},{"$f":"'[1]Pressure equipment'!B20","v":"TJ789"},{"$f":"'[1]Pressure equipment'!C20","v":"Dryer Filter"},{"$f":"'[1]Pressure equipment'!D20","v":"1380kPa"},{"$f":"'[1]Pressure equipment'!F20","v":1985},"TBC","Air"]
[null,{"$f":"'[1]Pressure equipment'!A21","v":"BLD 12"},{"$f":"'[1]Pressure equipment'!B21","v":"TJ790"},{"$f":"'[1]Pressure equipment'!C21","v":"Dryer Filter"},{"$f":"'[1]Pressure equipment'!D21","v":"1380kPa"},{"$f":"'[1]Pressure equipment'!F21","v":1985},"TBC","Air"]
[null,{"$f":"'[1]Pressure equipment'!A22","v":"BLD 12"},{"$f":"'[1]Pressure equipment'!B22","v":"TJ788"},{"$f":"'[1]Pressure equipment'!C22","v":"Dryer Filter "},{"$f":"'[1]Pressure equipment'!D22","v":"1380kPa"},{"$f":"'[1]Pressure equipment'!F22","v":1985},"TBC","Air"]
[null,{"$f":"'[1]Pressure equipment'!A23","v":"BLD 12"},{"$f":"'[1]Pressure equipment'!B23","v":"TJ783"},{"$f":"'[1]Pressure equipment'!C23","v":"Dryer"},{"$f":"'[1]Pressure equipment'!D23","v":"1380kPa"},{"$f":"'[1]Pressure equipment'!F23","v":1985},"TBC","Air"]
[null,{"$f":"'[1]Pressure equipment'!A24","v":"BLD 12"},{"$f":"'[1]Pressure equipment'!B24","v":"TJ784"},{"$f":"'[1]Pressure equipment'!C24","v":"Dryer"},{"$f":"'[1]Pressure equipment'!D24","v":"1380kPa"},{"$f":"'[1]Pressure equipment'!F24","v":1985},"TBC","Air"]
[null,{"$f":"'[1]Pressure equipment'!A25","v":"BLD 12"},{"$f":"'[1]Pressure equipment'!B25","v":"SER98-80378-1"},{"$f":"'[1]Pressure equipment'!C25","v":"Pressure Vessel"},{"$f":"'[1]Pressure equipment'!D25","v":"1380kPa"},{"$f":"'[1]Pressure equipment'!F25","v":1959},"TBC","Air"]
[null,{"$f":"'[1]Pressure equipment'!A26","v":"BLD 12"},{"$f":"'[1]Pressure equipment'!B26","v":"SER3006039-2"},{"$f":"'[1]Pressure equipment'!C26","v":"Pressure Vessel"},{"$f":"'[1]Pressure equipment'!D26","v":"1380kPa"},{"$f":"'[1]Pressure equipment'!F26","v":1965},"TBC","Air"]
[null,{"$f":"'[1]Pressure equipment'!A27","v":"BLD 12"},{"$f":"'[1]Pressure equipment'!B27","v":"SER3000042-1"},{"$f":"'[1]Pressure equipment'!C27","v":"Pressure Vessel"},{"$f":"'[1]Pressure equipment'!D27","v":"1380kPa"},{"$f":"'[1]Pressure equipment'!F27","v":1965},"TBC","Air"]
[null,{"$f":"'[1]Pressure equipment'!A28","v":"BLD 12"},{"$f":"'[1]Pressure equipment'!B28","v":"SER3006039-1"},{"$f":"'[1]Pressure equipment'!C28","v":"Pressure Vessel"},{"$f":"'[1]Pressure equipment'!D28","v":"1380kPa"},{"$f":"'[1]Pressure equipment'!F28","v":1959},"TBC","Air"]
[null,{"$f":"'[1]Pressure equipment'!A29","v":"BLD 12"},{"$f":"'[1]Pressure equipment'!B29","v":500968},{"$f":"'[1]Pressure equipment'!C29","v":"pressure Vessel"},{"$f":"'[1]Pressure equipment'!D29","v":"1500kPa"},{"$f":"'[1]Pressure equipment'!F29","v":2005},"TBC","Air"]
[null,{"$f":"'[1]Pressure equipment'!A30","v":"BLD 12"},{"$f":"'[1]Pressure equipment'!B30","v":501007},{"$f":"'[1]Pressure equipment'!C30","v":"Pressure Vessel"},{"$f":"'[1]Pressure equipment'!D30","v":"1500kPa"},{"$f":"'[1]Pressure equipment'!F30","v":2005},"TBC","Air"]
[null,{"$f":"'[1]Pressure equipment'!A31","v":"BLD 12"},{"$f":"'[1]Pressure equipment'!B31","v":"1069-1"},{"$f":"'[1]Pressure equipment'!C31","v":"Pressure Vessel"},{"$f":"'[1]Pressure equipment'!D31","v":"1000kPa"},{"$f":"'[1]Pressure equipment'!F31","v":2005},"TBC","Air"]
[null,{"$f":"'[1]Pressure equipment'!A32","v":"BLD 12"},{"$f":"'[1]Pressure equipment'!B32","v":"ILP4983"},{"$f":"'[1]Pressure equipment'!C32","v":"Dryer "},{"$f":"'[1]Pressure equipment'!D32","v":"1300kPa"},{"$f":"'[1]Pressure equipment'!F32","v":2005},"TBC","Air"]
[null,{"$f":"'[1]Pressure equipment'!A33","v":"BLD 12"},{"$f":"'[1]Pressure equipment'!B33","v":"ILP4984"},{"$f":"'[1]Pressure equipment'!C33","v":"Dryer"},{"$f":"'[1]Pressure equipment'!D33","v":"1300kPa"},{"$f":"'[1]Pressure equipment'!F33","v":2005},"TBC","Air"]
[null,{"$f":"'[1]Pressure equipment'!A34","v":"BLD 12"},{"$f":"'[1]Pressure equipment'!B34","v":5505008},{"$f":"'[1]Pressure equipment'!C34","v":"Inline Pre-filter "},{"$f":"'[1]Pressure equipment'!D34","v":"1600kPa"},{"$f":"'[1]Pressure equipment'!F34","v":2005},"TBC","Air"]
[null,{"$f":"'[1]Pressure equipment'!A35","v":"BLD 12"},{"$f":"'[1]Pressure equipment'!B35","v":5504092},{"$f":"'[1]Pressure equipment'!C35","v":"Inline Post-filter "},{"$f":"'[1]Pressure equipment'!D35","v":"1600kPa"},{"$f":"'[1]Pressure equipment'!F35","v":2005},"TBC","Air"]
[null,{"$f":"'[1]Pressure equipment'!A36","v":"BLD 12"},{"$f":"'[1]Pressure equipment'!B36","v":"76466A"},{"$f":"'[1]Pressure equipment'!C36","v":"Pulsation Vessel "},{"$f":"'[1]Pressure equipment'!D36","v":"1600kPa"},{"$f":"'[1]Pressure equipment'!F36","v":1984},"TBC","Air"]
[null,{"$f":"'[1]Pressure equipment'!A37","v":"BLD 12"},{"$f":"'[1]Pressure equipment'!B37","v":7201},{"$f":"'[1]Pressure equipment'!C37","v":"Pulsation Vessel "},{"$f":"'[1]Pressure equipment'!D37","v":"19 bar"},{"$f":"'[1]Pressure equipment'!F37","v":1969},"TBC","Air"]
[null,{"$f":"'[1]Pressure equipment'!A38","v":"BLD 12"},{"$f":"'[1]Pressure equipment'!B38","v":55767},{"$f":"'[1]Pressure equipment'!C38","v":"Accumulator"},{"$f":"'[1]Pressure equipment'!D38","v":"20600 Kpa"},{"$f":"'[1]Pressure equipment'!F38","v":1964},"TBC","Oil"]
[null,{"$f":"'[1]Pressure equipment'!A39","v":"BLD 12"},{"$f":"'[1]Pressure equipment'!B39","v":"A1020"},{"$f":"'[1]Pressure equipment'!C39","v":"Air Receiver "},{"$f":"'[1]Pressure equipment'!D39","v":"100PSI"},{"$f":"'[1]Pressure equipment'!F39","v":1965},"TBC","Air"]
[null,{"$f":"'[1]Pressure equipment'!A40","v":"BLd 12"},{"$f":"'[1]Pressure equipment'!B40","v":"19D289028"},{"$f":"'[1]Pressure equipment'!C40","v":"Hydraulic Accumulator"},{"$f":"'[1]Pressure equipment'!D40","v":"472 bar"},{"$f":"'[1]Pressure equipment'!F40","v":2019},"TBC","Oil"]
[null,{"$f":"'[1]Pressure equipment'!A41","v":"BLD 12"},{"$f":"'[1]Pressure equipment'!B41","v":"19D513059"},{"$f":"'[1]Pressure equipment'!C41","v":"Hydraulic Accumulator"},{"$f":"'[1]Pressure equipment'!D41","v":"472 bar"},{"$f":"'[1]Pressure equipment'!F41","v":2019},"TBC","Oil"]
[null,{"$f":"'[1]Pressure equipment'!A42","v":"BLD 12"},{"$f":"'[1]Pressure equipment'!B42","v":"CMGF05504092"},{"$f":"'[1]Pressure equipment'!C42","v":"Pressure Vessel"},{"$f":"'[1]Pressure equipment'!D42","v":"16 bar"},{"$f":"'[1]Pressure equipment'!F42","v":2005},"TBC","Air"]
[null,{"$f":"'[1]Pressure equipment'!A43","v":"BLD 12"},{"$f":"'[1]Pressure equipment'!B43","v":"CMGF05S05008"},{"$f":"'[1]Pressure equipment'!C43","v":"Pressure Vessel"},{"$f":"'[1]Pressure equipment'!D43","v":"16 bar"},{"$f":"'[1]Pressure equipment'!F43","v":2005},"TBC","Air"]
[null,{"$f":"'[1]Pressure equipment'!A44","v":"BLD 11"},{"$f":"'[1]Pressure equipment'!B44","v":"ILP 1034"},{"$f":"'[1]Pressure equipment'!C44","v":"Tunnel Air Dryer "},{"$f":"'[1]Pressure equipment'!D44","v":"330kPa"},{"$f":"'[1]Pressure equipment'!F44","v":1986},"TBC","Air"]
[null,{"$f":"'[1]Pressure equipment'!A45","v":"BLD 11"},{"$f":"'[1]Pressure equipment'!B45","v":"ILP 1035"},{"$f":"'[1]Pressure equipment'!C45","v":"Tunnel Air Dryer "},{"$f":"'[1]Pressure equipment'!D45","v":"330kPa"},{"$f":"'[1]Pressure equipment'!F45","v":1986},"TBC","Air"]
[null,{"$f":"'[1]Pressure equipment'!A46","v":"BLD 11"},{"$f":"'[1]Pressure equipment'!B46","v":901861},{"$f":"'[1]Pressure equipment'!C46","v":"Hydaruic Accumulator"},{"$f":"'[1]Pressure equipment'!D46","v":"20700 Kpa"},{"$f":"'[1]Pressure equipment'!F46","v":1986},"TBC","Oil"]
[null,{"$f":"'[1]Pressure equipment'!A47","v":"BLD 11"},{"$f":"'[1]Pressure equipment'!B47","v":"ILP 1064"},{"$f":"'[1]Pressure equipment'!C47","v":"Tunnel Air Dryer Filter "},{"$f":"'[1]Pressure equipment'!D47","v":"330kPa"},{"$f":"'[1]Pressure equipment'!F47","v":1987},"TBC","Air"]
[null,{"$f":"'[1]Pressure equipment'!A48","v":"BLD 11"},{"$f":"'[1]Pressure equipment'!B48","v":"ILA 5457"},{"$f":"'[1]Pressure equipment'!C48","v":"Service Air Dryer "},{"$f":"'[1]Pressure equipment'!D48","v":"1000kPa"},{"$f":"'[1]Pressure equipment'!F48","v":1986},"TBC","Air"]
[null,{"$f":"'[1]Pressure equipment'!A49","v":"BLD 11"},{"$f":"'[1]Pressure equipment'!B49","v":"ILA 5458"},{"$f":"'[1]Pressure equipment'!C49","v":"Service Air Dryer "},{"$f":"'[1]Pressure equipment'!D49","v":"1000kPa"},{"$f":"'[1]Pressure equipment'!F49","v":1986},"TBC","Air"]
[null,{"$f":"'[1]Pressure equipment'!A50","v":"BLD 11"},{"$f":"'[1]Pressure equipment'!B50","v":"ILP 1128"},{"$f":"'[1]Pressure equipment'!C50","v":"Service Air Receiver "},{"$f":"'[1]Pressure equipment'!D50","v":"850kPa"},{"$f":"'[1]Pressure equipment'!F50","v":1987},"TBC","Air"]
[null,{"$f":"'[1]Pressure equipment'!A51","v":"BLD 11"},{"$f":"'[1]Pressure equipment'!B51","v":"ILA 5449"},{"$f":"'[1]Pressure equipment'!C51","v":"Service Air Filter Vessel "},{"$f":"'[1]Pressure equipment'!D51","v":"1000kPa"},{"$f":"'[1]Pressure equipment'!F51","v":1986},"TBC","Air"]
[null,{"$f":"'[1]Pressure equipment'!A52","v":"BLD 11"},{"$f":"'[1]Pressure equipment'!B52","v":"2980/1"},{"$f":"'[1]Pressure equipment'!C52","v":"Emergency Oil Tank "},{"$f":"'[1]Pressure equipment'!D52","v":"1000kPa"},{"$f":"'[1]Pressure equipment'!F52","v":1987},"TBC","Oil"]
[null,{"$f":"'[1]Pressure equipment'!A53","v":"BLD 11"},{"$f":"'[1]Pressure equipment'!B53","v":"2980/2"},{"$f":"'[1]Pressure equipment'!C53","v":"Lube Oil Reservoir "},{"$f":"'[1]Pressure equipment'!D53","v":"300kPa"},{"$f":"'[1]Pressure equipment'!F53","v":1987},"TBC","Oil"]
[null,{"$f":"'[1]Pressure equipment'!A54","v":"BLD 11"},{"$f":"'[1]Pressure equipment'!B54","v":"2980/3"},{"$f":"'[1]Pressure equipment'!C54","v":"Lube Oil Cooler"},{"$f":"'[1]Pressure equipment'!D54","v":"1000kPa"},{"$f":"'[1]Pressure equipment'!F54","v":1987},"TBC","Oil"]
[null,{"$f":"'[1]Pressure equipment'!A55","v":"BLD 11"},{"$f":"'[1]Pressure equipment'!B55","v":"AL 8760"},{"$f":"'[1]Pressure equipment'!C55","v":"Lube Oil Filter"},{"$f":"'[1]Pressure equipment'!D55","v":"1000kPa"},{"$f":"'[1]Pressure equipment'!F55","v":1987},"TBC","Oil"]
[null,{"$f":"'[1]Pressure equipment'!A56","v":"BLD 11"},{"$f":"'[1]Pressure equipment'!B56","v":"BS5042182CM26497"},{"$f":"'[1]Pressure equipment'!C56","v":"Plenum Hydraulic Accumulator"},{"$f":"'[1]Pressure equipment'!D56","v":"20 700kPa"},{"$f":"'[1]Pressure equipment'!F56","v":1986},"TBC","Oil"]
[null,{"$f":"'[1]Pressure equipment'!A57","v":"BLD 11"},{"$f":"'[1]Pressure equipment'!B57","v":"BS5042182CM26499"},{"$f":"'[1]Pressure equipment'!C57","v":"Plenum Hydraulic Accumulator"},{"$f":"'[1]Pressure equipment'!D57","v":"20 700kPa"},{"$f":"'[1]Pressure equipment'!F57","v":1986},"TBC","Oil"]
[null,{"$f":"'[1]Pressure equipment'!A58","v":"BLD 11"},{"$f":"'[1]Pressure equipment'!B58","v":"BS5042182CM26500"},{"$f":"'[1]Pressure equipment'!C58","v":"Plenum Hydraulic Accumulator "},{"$f":"'[1]Pressure equipment'!D58","v":"20 700kPa"},{"$f":"'[1]Pressure equipment'!F58","v":1986},"TBC","Oil"]
[null,{"$f":"'[1]Pressure equipment'!A59","v":"BLD 11"},{"$f":"'[1]Pressure equipment'!B59","v":19175},{"$f":"'[1]Pressure equipment'!C59","v":"Air Reservoir (TTF) "},{"$f":"'[1]Pressure equipment'!D59","v":"1000kPa"},{"$f":"'[1]Pressure equipment'!F59","v":2007},"TBC","Air"]
[null,"BLD 11","TBC on Site","Medium speed wind tunnel hydraulic system piping","TBC on Site",null,"TBC","Oil","To be verified on site"]
[null,"BLD 11","TBC on Site","medium speed wind tunnel compressor lube oil system piping","TBC on Site",null,"TBC","Oil","To be verified on site"]
[null,"BLD 11","TBC on Site","Cooling tower water piping","TBC on Site",null,"TBC","Oil"]
[null,{"$f":"'[1]Pressure equipment'!A60","v":"BLD 12"},{"$f":"'[1]Pressure equipment'!B60","v":"0486"},{"$f":"'[1]Pressure equipment'!C60","v":"Pressure Vessel"},{"$f":"'[1]Pressure equipment'!D60","v":"1380KPA"},{"$f":"'[1]Pressure equipment'!F60","v":1985},"TBC","Air"]
[null,{"$f":"'[1]Pressure equipment'!A61","v":"BLD 12"},{"$f":"'[1]Pressure equipment'!B61","v":"129"},{"$f":"'[1]Pressure equipment'!C61","v":"Pressure Vessel"},{"$f":"'[1]Pressure equipment'!D61","v":"1552KPA"},{"$f":"'[1]Pressure equipment'!F61","v":1956},"TBC","Air"]
[null,{"$f":"'[1]Pressure equipment'!A62","v":"BLD 13"},{"$f":"'[1]Pressure equipment'!B62","v":"IA2807"},{"$f":"'[1]Pressure equipment'!C62","v":"Pressure Vessel"},{"$f":"'[1]Pressure equipment'!D62","v":"1379KPA"},{"$f":"'[1]Pressure equipment'!F62","v":1979},"TBC","Air"]
[null,{"$f":"'[1]Pressure equipment'!A63","v":"BLD 14"},{"$f":"'[1]Pressure equipment'!B63","v":"829"},{"$f":"'[1]Pressure equipment'!C63","v":"Pressure Vessel"},{"$f":"'[1]Pressure equipment'!D63","v":"6000KPA"},{"$f":"'[1]Pressure equipment'!F63","v":1990},"TBC","Air"]
[null,{"$f":"'[1]Pressure equipment'!A64","v":"BLD 14"},{"$f":"'[1]Pressure equipment'!B64","v":"29472"},{"$f":"'[1]Pressure equipment'!C64","v":"Pressure Vessel"},{"$f":"'[1]Pressure equipment'!D64","v":"1100KPA"},{"$f":"'[1]Pressure equipment'!F64","v":2002},"TBC","Air"]
[null,{"$f":"'[1]Pressure equipment'!A65","v":"BLD 14"},{"$f":"'[1]Pressure equipment'!B65","v":"AF2154/ J37138"},{"$f":"'[1]Pressure equipment'!C65","v":"Pressure Vessel"},{"$f":"'[1]Pressure equipment'!D65","v":"1300KPA"},{"$f":"'[1]Pressure equipment'!F65","v":1998},"TBC","Air"]
[null,{"$f":"'[1]Pressure equipment'!A66","v":"BLD 14"},{"$f":"'[1]Pressure equipment'!B66","v":"ILE4265"},{"$f":"'[1]Pressure equipment'!C66","v":"Pressure Vessel"},{"$f":"'[1]Pressure equipment'!D66","v":"1380KPA"},{"$f":"'[1]Pressure equipment'!F66","v":1999},"TBC","Air"]
[null,{"$f":"'[1]Pressure equipment'!A67","v":"BLD 14"},{"$f":"'[1]Pressure equipment'!B67","v":"6523"},{"$f":"'[1]Pressure equipment'!C67","v":"Pressure Vessel"},{"$f":"'[1]Pressure equipment'!D67","v":"860KPA"},{"$f":"'[1]Pressure equipment'!F67","v":2013},"TBC","Air"]
[null,{"$f":"'[1]Pressure equipment'!A68","v":"BLD 14"},{"$f":"'[1]Pressure equipment'!B68","v":"6276"},{"$f":"'[1]Pressure equipment'!C68","v":"Pressure Vessel"},{"$f":"'[1]Pressure equipment'!D68","v":"1380KPA"},{"$f":"'[1]Pressure equipment'!F68","v":1982},"TBC","Air"]
[null,{"$f":"'[1]Pressure equipment'!A69","v":"BLD 14"},{"$f":"'[1]Pressure equipment'!B69","v":"6576"},{"$f":"'[1]Pressure equipment'!C69","v":"Pressure Vessel"},{"$f":"'[1]Pressure equipment'!D69","v":"1380KPA"},{"$f":"'[1]Pressure equipment'!F69","v":1982},"TBC","Air"]
[null,{"$f":"'[1]Pressure equipment'!A70","v":"BLD 14"},{"$f":"'[1]Pressure equipment'!B70","v":"ILA8551"},{"$f":"'[1]Pressure equipment'!C70","v":"Pressure Vessel"},{"$f":"'[1]Pressure equipment'!D70","v":"1380KPA"},{"$f":"'[1]Pressure equipment'!F70","v":1988},"TBC","Air"]
[null,{"$f":"'[1]Pressure equipment'!A71","v":"BLD 14"},{"$f":"'[1]Pressure equipment'!B71","v":"17/21"},{"$f":"'[1]Pressure equipment'!C71","v":"Boiler Clave"},{"$f":"'[1]Pressure equipment'!D71","v":"11.38bar"},{"$f":"'[1]Pressure equipment'!F71","v":2017},"TBC","Steam"]
[null,{"$f":"'[1]Pressure equipment'!A73","v":"BLD 14"},{"$f":"'[1]Pressure equipment'!B73","v":"20717"},{"$f":"'[1]Pressure equipment'!C73","v":"Pressure Vessel"},{"$f":"'[1]Pressure equipment'!D73","v":"1100KPA"},{"$f":"'[1]Pressure equipment'!F73","v":2007},"TBC","Air"]
[null,"BLD 14G","TBC on Site","Chiller plant cooling water pipelines at Roof top","TBC on Site",null,"TBC","Water"]
[null,"BLD 14G","TBC on Site","Regloplast oil heater","TBC on Site",null,"TBC","oil"]
[null,"BLD 14G","TBC on Site","Cooling water system on the basement","TBC on Site",null,"TBC","water"]
[null,"BLD 15","LK130","High pressure die casting ","TBC on Site",null,"TBC","Oil"]
[null,"BLD 15","LK630","High pressure die casting ","TBC on Site",null,"TBC","Oil"]
[null,null,"TBC on Site","Regloplast oil heater","TBC on Site",null,"TBC","Oil"]
[null,{"$f":"'[1]Pressure equipment'!A74","v":"BLD 15"},{"$f":"'[1]Pressure equipment'!B74","v":"6443"},{"$f":"'[1]Pressure equipment'!C74","v":"Pressure Vessel"},{"$f":"'[1]Pressure equipment'!D74","v":"689KPA"},{"$f":"'[1]Pressure equipment'!F74","v":1975},"TBC","Air"]
[null,{"$f":"'[1]Pressure equipment'!A75","v":"BLD 15"},{"$f":"'[1]Pressure equipment'!B75","v":"ILS1593"},{"$f":"'[1]Pressure equipment'!C75","v":"Pressure Vessel"},{"$f":"'[1]Pressure equipment'!D75","v":"1100KPA"},{"$f":"'[1]Pressure equipment'!F75","v":2006},"TBC","Air"]
[null,"BLD 15","TBC on Site","Instron & Schenck testing machines hydraulic hoses","TBC on Site","TBC","TBC","Oil",null,"Rubber Flexible hoses"]
[null,"BLD 15","TBC on Site","Compactcool chiller pipelines","TBC on Site","TBC","TBC","Water"]
[null,{"$f":"'[1]Pressure equipment'!A76","v":"BLD 16"},{"$f":"'[1]Pressure equipment'!B76","v":"5600"},{"$f":"'[1]Pressure equipment'!C76","v":"Pressure Vessel"},{"$f":"'[1]Pressure equipment'!D76","v":"1380KPA"},{"$f":"'[1]Pressure equipment'!F76","v":1981},"TBC","Air"]
[null,{"$f":"'[1]Pressure equipment'!A77","v":"BLD 17"},{"$f":"'[1]Pressure equipment'!B77","v":"5521"},{"$f":"'[1]Pressure equipment'!C77","v":"Pressure Vessel"},{"$f":"'[1]Pressure equipment'!D77","v":"1034KPA"},{"$f":"'[1]Pressure equipment'!F77","v":1990},"TBC","Air"]
[null,{"$f":"'[1]Pressure equipment'!A78","v":"BLD 18 "},{"$f":"'[1]Pressure equipment'!B78","v":"2036.322"},{"$f":"'[1]Pressure equipment'!C78","v":"Reactor, Biostat"},{"$f":"'[1]Pressure equipment'!D78","v":"400KPA"},{"$f":"'[1]Pressure equipment'!F78","v":2015},"TBC","Steam"]
[null,{"$f":"'[1]Pressure equipment'!A79","v":"BLD 18 "},{"$f":"'[1]Pressure equipment'!B79","v":"2036.323"},{"$f":"'[1]Pressure equipment'!C79","v":"Reactor, Biostat"},{"$f":"'[1]Pressure equipment'!D79","v":"400KPA"},{"$f":"'[1]Pressure equipment'!F79","v":2015},"TBC","Steam"]
[null,{"$f":"'[1]Pressure equipment'!A80","v":"BLD 18 "},{"$f":"'[1]Pressure equipment'!B80","v":"ILV 1283"},{"$f":"'[1]Pressure equipment'!C80","v":"Pressure Vessel"},{"$f":"'[1]Pressure equipment'!D80","v":"1380KPA"},{"$f":"'[1]Pressure equipment'!F80","v":1989},"TBC","Air"]
[null,{"$f":"'[1]Pressure equipment'!A81","v":"BLD 18 "},{"$f":"'[1]Pressure equipment'!B81","v":"ILV5076"},{"$f":"'[1]Pressure equipment'!C81","v":"Pressure Vessel"},{"$f":"'[1]Pressure equipment'!D81","v":"1380KPA"},{"$f":"'[1]Pressure equipment'!F81","v":1991},"TBC","Air"]
[null,{"$f":"'[1]Pressure equipment'!A82","v":"BLD 18 "},{"$f":"'[1]Pressure equipment'!B82","v":"050-5"},{"$f":"'[1]Pressure equipment'!C82","v":"Fermenter"},{"$f":"'[1]Pressure equipment'!D82","v":"300 Kpa"},{"$f":"'[1]Pressure equipment'!F82","v":1995},"TBC","Steam"]
[null,{"$f":"'[1]Pressure equipment'!A83","v":"BLD 18 "},{"$f":"'[1]Pressure equipment'!B83","v":"205-1"},{"$f":"'[1]Pressure equipment'!C83","v":"Fermenter"},{"$f":"'[1]Pressure equipment'!D83","v":"300 Kpa"},{"$f":"'[1]Pressure equipment'!F83","v":1995},"TBC","Steam"]
[null,{"$f":"'[1]Pressure equipment'!A84","v":"BLD 18 "},{"$f":"'[1]Pressure equipment'!B84","v":"150-2"},{"$f":"'[1]Pressure equipment'!C84","v":"Fermenter"},{"$f":"'[1]Pressure equipment'!D84","v":"300 Kpa Shell & 600 Ka Jacket"},{"$f":"'[1]Pressure equipment'!F84","v":1995},"TBC","Steam"]
[null,{"$f":"'[1]Pressure equipment'!A85","v":"BLD 18 "},{"$f":"'[1]Pressure equipment'!B85","v":"4957"},{"$f":"'[1]Pressure equipment'!C85","v":"Fermenter"},{"$f":"'[1]Pressure equipment'!D85","v":"300 Kpa Shell & 400 Kpa Jacket"},{"$f":"'[1]Pressure equipment'!F85","v":2015},"TBC","Steam"]
[null,{"$f":"'[1]Pressure equipment'!A86","v":"BLD 18 "},{"$f":"'[1]Pressure equipment'!B86","v":"4958"},{"$f":"'[1]Pressure equipment'!C86","v":"Fermenter"},{"$f":"'[1]Pressure equipment'!D86","v":"300 Kpa Shell & 400 Kpa Jacket"},{"$f":"'[1]Pressure equipment'!F86","v":2015},"TBC","Steam"]
[null,{"$f":"'[1]Pressure equipment'!A87","v":"BLD 18 "},{"$f":"'[1]Pressure equipment'!B87","v":"4959"},{"$f":"'[1]Pressure equipment'!C87","v":"Fermenter"},{"$f":"'[1]Pressure equipment'!D87","v":"300 Kpa Shell & 400 Kpa Jacket"},{"$f":"'[1]Pressure equipment'!F87","v":2015},"TBC","Steam"]
[null,{"$f":"'[1]Pressure equipment'!A88","v":"BLD 18 "},{"$f":"'[1]Pressure equipment'!B88","v":"217/300DS"},{"$f":"'[1]Pressure equipment'!C88","v":"Fermenter"},{"$f":"'[1]Pressure equipment'!D88","v":"Minus 1bar Sheel & 3 bar Jacket"},{"$f":"'[1]Pressure equipment'!F88","v":1992},"TBC","Steam"]
[null,{"$f":"'[1]Pressure equipment'!A89","v":"BLD 18 "},{"$f":"'[1]Pressure equipment'!B89","v":"1302216"},{"$f":"'[1]Pressure equipment'!C89","v":"Fermenter"},{"$f":"'[1]Pressure equipment'!D89","v":"280 Kpa"},{"$f":"'[1]Pressure equipment'!F89","v":2014},"TBC","Steam"]
[null,{"$f":"'[1]Pressure equipment'!A91","v":"BLD 18 "},{"$f":"'[1]Pressure equipment'!B91","v":"660HC10-1194"},{"$f":"'[1]Pressure equipment'!C91","v":"Reactor vessel"},{"$f":"'[1]Pressure equipment'!D91","v":"1900PSI"},{"$f":"'[1]Pressure equipment'!F91","v":1999},"TBC","Steam"]
[null,{"$f":"'[1]Pressure equipment'!A92","v":"BLD 19"},{"$f":"'[1]Pressure equipment'!B92","v":"4500-1006-20322"},{"$f":"'[1]Pressure equipment'!C92","v":"Pressure Reactor"},{"$f":"'[1]Pressure equipment'!D92","v":"13 100 Kpa"},{"$f":"'[1]Pressure equipment'!F92","v":2010},"TBC","Steam"]
[null,{"$f":"'[1]Pressure equipment'!A93","v":"BLD 18 "},{"$f":"'[1]Pressure equipment'!B93","v":"J38349"},{"$f":"'[1]Pressure equipment'!C93","v":"Pressure Vessel"},{"$f":"'[1]Pressure equipment'!D93","v":"1035KPA"},{"$f":"'[1]Pressure equipment'!F93","v":2001},"TBC","Steam"]
[null,{"$f":"'[1]Pressure equipment'!A99","v":"BLD 18 "},{"$f":"'[1]Pressure equipment'!B99","v":"W28"},{"$f":"'[1]Pressure equipment'!C99","v":"Steam Generator"},{"$f":"'[1]Pressure equipment'!D99","v":"1000 Kpa"},{"$f":"'[1]Pressure equipment'!F99","v":1983},"TBC","Steam"]
[null,{"$f":"'[1]Pressure equipment'!A101","v":"BLD 18 "},{"$f":"'[1]Pressure equipment'!B101","v":"74319"},{"$f":"'[1]Pressure equipment'!C101","v":"Steam Generator"},{"$f":"'[1]Pressure equipment'!D101","v":"1100 kpa"},{"$f":"'[1]Pressure equipment'!F101","v":2011},"TBC","Steam"]
[null,"BLD 18 ","TBC on Site","Utility Chiller pipelines","TBC on Site","TBC","TBC","Water"]
[null,{"$f":"'[1]Pressure equipment'!A102","v":"BLD19"},{"$f":"'[1]Pressure equipment'!B102","v":"J41508"},{"$f":"'[1]Pressure equipment'!C102","v":"Pressure vessel"},{"$f":"'[1]Pressure equipment'!D102","v":"1035 Kpa"},{"$f":"'[1]Pressure equipment'!F102","v":2016},"TBC","Steam"]
[null,"BLD 19C","14I304I","Compactcool chiller pipelines","TBC on Site","TBC","TBC","Water"]
[null,{"$f":"'[1]Pressure equipment'!A103","v":"BLD 20"},{"$f":"'[1]Pressure equipment'!B103","v":"IA1881"},{"$f":"'[1]Pressure equipment'!C103","v":"Fermenter"},{"$f":"'[1]Pressure equipment'!D103","v":"300KPA"},{"$f":"'[1]Pressure equipment'!F103","v":1979},"TBC","Steam"]
[null,{"$f":"'[1]Pressure equipment'!A106","v":"BLD 20"},{"$f":"'[1]Pressure equipment'!B106","v":"64727"},{"$f":"'[1]Pressure equipment'!C106","v":"Pressure Vessel"},{"$f":"'[1]Pressure equipment'!D106","v":"1100 Kpa"},{"$f":"'[1]Pressure equipment'!F106","v":2005},"TBC","Steam"]
[null,{"$f":"'[1]Pressure equipment'!A112","v":"BLD 20"},{"$f":"'[1]Pressure equipment'!B112","v":"5903"},{"$f":"'[1]Pressure equipment'!C112","v":"Pressure Vessel"},{"$f":"'[1]Pressure equipment'!D112","v":"1034KPA"},{"$f":"'[1]Pressure equipment'!F112","v":1991},"TBC","Air"]
[null,{"$f":"'[1]Pressure equipment'!A113","v":"BLD 20"},{"$f":"'[1]Pressure equipment'!B113","v":"04498"},{"$f":"'[1]Pressure equipment'!C113","v":"Pressure Vessel"},{"$f":"'[1]Pressure equipment'!D113","v":"1100KPA"},{"$f":"'[1]Pressure equipment'!F113","v":2009},"TBC","Air"]
[null,{"$f":"'[1]Pressure equipment'!A114","v":"BLD 20"},{"$f":"'[1]Pressure equipment'!B114","v":"69973"},{"$f":"'[1]Pressure equipment'!C114","v":"Pressure Vessel"},{"$f":"'[1]Pressure equipment'!D114","v":"1100KPA"},{"$f":"'[1]Pressure equipment'!F114","v":"30 June 1989/2005"},"TBC","Air"]
[null,{"$f":"'[1]Pressure equipment'!A115","v":"BLD 20"},{"$f":"'[1]Pressure equipment'!B115","v":"J37407"},{"$f":"'[1]Pressure equipment'!C115","v":"Pressure Vessel"},{"$f":"'[1]Pressure equipment'!D115","v":"1050KPA"},{"$f":"'[1]Pressure equipment'!F115","v":1999},"TBC","Air"]
[null,{"$f":"'[1]Pressure equipment'!A116","v":"BLD 20"},{"$f":"'[1]Pressure equipment'!B116","v":"ILS9055"},{"$f":"'[1]Pressure equipment'!C116","v":"Pressure Vessel"},{"$f":"'[1]Pressure equipment'!D116","v":"1400 Kpa"},{"$f":"'[1]Pressure equipment'!F116","v":2013},"TBC","Air"]
[null,{"$f":"'[1]Pressure equipment'!A117","v":"BLD 23"},{"$f":"'[1]Pressure equipment'!B117","v":"SE5067"},{"$f":"'[1]Pressure equipment'!C117","v":"Pressure Vessel"},{"$f":"'[1]Pressure equipment'!D117","v":"1379KPA"},{"$f":"'[1]Pressure equipment'!F117","v":1961},"TBC","Air"]
[null,"BLD 23","TBC on Site","Reactor oil pipelines","TBC on Site",null,"TBC","Oil"]
[null,{"$f":"'[1]Pressure equipment'!A118","v":"BLD23"},{"$f":"'[1]Pressure equipment'!B118","v":"57645"},{"$f":"'[1]Pressure equipment'!C118","v":"Pressure vessel"},{"$f":"'[1]Pressure equipment'!D118","v":"1500 Kpa"},{"$f":"'[1]Pressure equipment'!F118","v":2014},"TBC","Air"]
[null,{"$f":"'[1]Pressure equipment'!A119","v":"BLD 24"},{"$f":"'[1]Pressure equipment'!B119","v":"ILA8101"},{"$f":"'[1]Pressure equipment'!C119","v":"Pressure Vessel"},{"$f":"'[1]Pressure equipment'!D119","v":"1000KPA"},{"$f":"'[1]Pressure equipment'!F119","v":1988},"TBC","Air"]
[null,{"$f":"'[1]Pressure equipment'!A120","v":"BLD 24"},{"$f":"'[1]Pressure equipment'!B120","v":"J28799"},{"$f":"'[1]Pressure equipment'!C120","v":"Pressure Vessel"},{"$f":"'[1]Pressure equipment'!D120","v":"1035KPA"},{"$f":"'[1]Pressure equipment'!F120","v":1982},"TBC","Air"]
[null,{"$f":"'[1]Pressure equipment'!A121","v":"Kloppersbos"},{"$f":"'[1]Pressure equipment'!B121","v":"5531"},{"$f":"'[1]Pressure equipment'!C121","v":"Pressure Vessel"},{"$f":"'[1]Pressure equipment'!D121","v":"1380KPA"},{"$f":"'[1]Pressure equipment'!F121","v":1981},"TBC","Air"]
[null,{"$f":"'[1]Pressure equipment'!A122","v":"BLD 28"},{"$f":"'[1]Pressure equipment'!B122","v":"3883"},{"$f":"'[1]Pressure equipment'!C122","v":"Pressure Vessel"},{"$f":"'[1]Pressure equipment'!D122","v":"862KPA"},{"$f":"'[1]Pressure equipment'!F122","v":1964},"TBC","Air"]
[null,{"$f":"'[1]Pressure equipment'!A123","v":"BLD 28"},{"$f":"'[1]Pressure equipment'!B123","v":"4160"},{"$f":"'[1]Pressure equipment'!C123","v":"Pressure Vessel"},{"$f":"'[1]Pressure equipment'!D123","v":"1035KPA"},{"$f":"'[1]Pressure equipment'!F123","v":1989},"TBC","Air"]
[null,{"$f":"'[1]Pressure equipment'!A124","v":"BLD 32"},{"$f":"'[1]Pressure equipment'!B124","v":"SE5827"},{"$f":"'[1]Pressure equipment'!C124","v":"Pressure Vessel"},{"$f":"'[1]Pressure equipment'!D124","v":"860KPA"},{"$f":"'[1]Pressure equipment'!F124","v":1962},"TBC","Air"]
[null,{"$f":"'[1]Pressure equipment'!A125","v":"BLD 33"},{"$f":"'[1]Pressure equipment'!B125","v":"A3064"},{"$f":"'[1]Pressure equipment'!C125","v":"Pressure Vessel"},{"$f":"'[1]Pressure equipment'!D125","v":"1370KPA"},{"$f":"'[1]Pressure equipment'!F125","v":1966},"TBC","Air"]
[null,"BLD 36","TBC on Site","Giullotine pipelines","TBC on Site",null,"TBC","Oil"]
[null,{"$f":"'[1]Pressure equipment'!A126","v":"BLD 36"},{"$f":"'[1]Pressure equipment'!B126","v":"2761  /ILA 2961"},{"$f":"'[1]Pressure equipment'!C126","v":"Pressure Vessel"},{"$f":"'[1]Pressure equipment'!D126","v":"1380KPA"},{"$f":"'[1]Pressure equipment'!F126","v":1984},"TBC","Air"]
[null,{"$f":"'[1]Pressure equipment'!A127","v":"BLD 36"},{"$f":"'[1]Pressure equipment'!B127","v":"7594"},{"$f":"'[1]Pressure equipment'!C127","v":"Mobile Pressure Vessel"},{"$f":"'[1]Pressure equipment'!D127","v":"1379 Kpa"},{"$f":"'[1]Pressure equipment'!F127","v":1975},"TBC","Air"]
[null,{"$f":"'[1]Pressure equipment'!A128","v":"BLD 36"},{"$f":"'[1]Pressure equipment'!B128","v":"5036"},{"$f":"'[1]Pressure equipment'!C128","v":"Mobile Pressure Vessel"},{"$f":"'[1]Pressure equipment'!D128","v":"193PSI"},{"$f":"'[1]Pressure equipment'!F128","v":1961},"TBC","Air"]
[null,{"$f":"'[1]Pressure equipment'!A129","v":"BLD 36"},{"$f":"'[1]Pressure equipment'!B129","v":"IA 2918"},{"$f":"'[1]Pressure equipment'!C129","v":"Pressure Vessel"},{"$f":"'[1]Pressure equipment'!D129","v":"1378 Kpa"},{"$f":"'[1]Pressure equipment'!F129","v":1980},"TBC","Air"]
[null,{"$f":"'[1]Pressure equipment'!A130","v":"BLD 14E"},{"$f":"'[1]Pressure equipment'!B130","v":"172049"},{"$f":"'[1]Pressure equipment'!C130","v":"Mobile Pressure Vessel"},{"$f":"'[1]Pressure equipment'!D130","v":"1100KPA"},{"$f":"'[1]Pressure equipment'!F130","v":2004},"TBC","Air"]
[null,{"$f":"'[1]Pressure equipment'!A131","v":"BLD 37"},{"$f":"'[1]Pressure equipment'!B131","v":"AR1522 /J28799"},{"$f":"'[1]Pressure equipment'!C131","v":"Pressure Vessel"},{"$f":"'[1]Pressure equipment'!D131","v":"1035KPA"},{"$f":"'[1]Pressure equipment'!F131","v":1982},"TBC","Air"]
[null,{"$f":"'[1]Pressure equipment'!A132","v":"BLD 43"},{"$f":"'[1]Pressure equipment'!B132","v":"ILV5076"},{"$f":"'[1]Pressure equipment'!C132","v":"Pressure Vessel"},{"$f":"'[1]Pressure equipment'!D132","v":"1380KPA"},{"$f":"'[1]Pressure equipment'!F132","v":1991},"TBC","Air"]
[null,{"$f":"'[1]Pressure equipment'!A133","v":"BLD 44"},{"$f":"'[1]Pressure equipment'!B133","v":"3217"},{"$f":"'[1]Pressure equipment'!C133","v":"Pressure Vessel"},{"$f":"'[1]Pressure equipment'!D133","v":"1000KPA"},{"$f":"'[1]Pressure equipment'!F133","v":1982},"TBC","Air"]
[null,{"$f":"'[1]Pressure equipment'!A134","v":"BLD 44"},{"$f":"'[1]Pressure equipment'!B134","v":"ILV1527"},{"$f":"'[1]Pressure equipment'!C134","v":"Pressure Vessel"},{"$f":"'[1]Pressure equipment'!D134","v":"1000KPA"},{"$f":"'[1]Pressure equipment'!F134","v":1989},"TBC","Air"]
[null,{"$f":"'[1]Pressure equipment'!A135","v":"BLD 44"},{"$f":"'[1]Pressure equipment'!B135","v":"1802979018"},{"$f":"'[1]Pressure equipment'!C135","v":"Pressure vessel"},{"$f":"'[1]Pressure equipment'!D135","v":"1100kPa"},{"$f":"'[1]Pressure equipment'!F135","v":2018},"TBC","Air"]
[null,{"$f":"'[1]Pressure equipment'!A137","v":"BLD 46"},{"$f":"'[1]Pressure equipment'!B137","v":"J38171/AF6488"},{"$f":"'[1]Pressure equipment'!C137","v":"Pressure Vessel"},{"$f":"'[1]Pressure equipment'!D137","v":"1000KPA"},{"$f":"'[1]Pressure equipment'!F137","v":2001},"TBC","Steam"]
[null,{"$f":"'[1]Pressure equipment'!A138","v":"BLD 46"},{"$f":"'[1]Pressure equipment'!B138","v":"ILV2858 /ILA2858"},{"$f":"'[1]Pressure equipment'!C138","v":"Pressure Vessel"},{"$f":"'[1]Pressure equipment'!D138","v":"700KPA"},{"$f":"'[1]Pressure equipment'!F138","v":1989},"TBC","Air"]
[null,{"$f":"'[1]Pressure equipment'!A139","v":"BLD 46"},{"$f":"'[1]Pressure equipment'!B139","v":"53378/029"},{"$f":"'[1]Pressure equipment'!C139","v":"Pressure Vessel"},{"$f":"'[1]Pressure equipment'!D139","v":"1200KPA"},{"$f":"'[1]Pressure equipment'!F139","v":2009},"TBC","Air"]
[null,{"$f":"'[1]Pressure equipment'!A140","v":"BLD 46"},{"$f":"'[1]Pressure equipment'!B140","v":"4100"},{"$f":"'[1]Pressure equipment'!C140","v":"Pressure Vessel"},{"$f":"'[1]Pressure equipment'!D140","v":"1380KPA"},{"$f":"'[1]Pressure equipment'!F140","v":1989},"TBC","Air"]
[null,{"$f":"'[1]Pressure equipment'!A141","v":"BLD 46"},{"$f":"'[1]Pressure equipment'!B141","v":"59237"},{"$f":"'[1]Pressure equipment'!C141","v":"Pressure Vessel"},{"$f":"'[1]Pressure equipment'!D141","v":"16 bar"},{"$f":"'[1]Pressure equipment'!F141","v":1992},"TBC","Air"]
[null,{"$f":"'[1]Pressure equipment'!A142","v":"BLD 46"},{"$f":"'[1]Pressure equipment'!B142","v":"J38153"},{"$f":"'[1]Pressure equipment'!C142","v":"Pressure Vessel"},{"$f":"'[1]Pressure equipment'!D142","v":"1300KPA"},{"$f":"'[1]Pressure equipment'!F142","v":2001},"TBC","Air"]
[null,{"$f":"'[1]Pressure equipment'!A143","v":"PTA Casting Lab"},{"$f":"'[1]Pressure equipment'!B143","v":"J24566"},{"$f":"'[1]Pressure equipment'!C143","v":"Pressure Vessel"},{"$f":"'[1]Pressure equipment'!D143","v":"1035 Kpa"},{"$f":"'[1]Pressure equipment'!F143","v":1978},"TBC","Air"]
[null,{"$f":"'[1]Pressure equipment'!A144","v":"Paardefontein"},{"$f":"'[1]Pressure equipment'!B144","v":"AG9876"},{"$f":"'[1]Pressure equipment'!C144","v":"Pressure Vessel"},{"$f":"'[1]Pressure equipment'!D144","v":"1400Kpa"},{"$f":"'[1]Pressure equipment'!F144","v":2011},"TBC","Air"]
[null,{"$f":"'[1]Pressure equipment'!A145","v":"Paardefontein"},{"$f":"'[1]Pressure equipment'!B145","v":"PY1803"},{"$f":"'[1]Pressure equipment'!C145","v":"Steam Generator"},{"$f":"'[1]Pressure equipment'!D145","v":"1000 Kpa"},{"$f":"'[1]Pressure equipment'!F145","v":2018},"TBC","Air"]
[null,{"$f":"'[1]Pressure equipment'!A146","v":"Paardefontein"},{"$f":"'[1]Pressure equipment'!B146","v":"J33711"},{"$f":"'[1]Pressure equipment'!C146","v":"Pressure vessel"},{"$f":"'[1]Pressure equipment'!D146","v":"1400 Kpa"},{"$f":"'[1]Pressure equipment'!F146","v":1990},"TBC","Steam"]
[null,{"$f":"'[1]Pressure equipment'!A147","v":"Kloppersbos"},{"$f":"'[1]Pressure equipment'!B147","v":"ILA5759"},{"$f":"'[1]Pressure equipment'!C147","v":"Pressure Vessel"},{"$f":"'[1]Pressure equipment'!D147","v":"1380KPA"},{"$f":"'[1]Pressure equipment'!F147","v":1987},"TBC","Air"]
[null,{"$f":"'[1]Pressure equipment'!A148","v":"Kloppersbos"},{"$f":"'[1]Pressure equipment'!B148","v":"ILA5768"},{"$f":"'[1]Pressure equipment'!C148","v":"Pressure Vessel"},{"$f":"'[1]Pressure equipment'!D148","v":"1380KPA"},{"$f":"'[1]Pressure equipment'!F148","v":1957},"TBC","Air"]
[null,{"$f":"'[1]Pressure equipment'!A149","v":"Cottesloe"},{"$f":"'[1]Pressure equipment'!B149","v":"J35967"},{"$f":"'[1]Pressure equipment'!C149","v":"Pressure Vessel"},{"$f":"'[1]Pressure equipment'!D149","v":"1035 Kpa"},{"$f":"'[1]Pressure equipment'!F149","v":1995},"TBC","Air"]
[null,"Cottesloe","TBC on Site","1000 ton press piping Mohr Federhaff machine","TBC on Site",null,"TBC","oil"]
[null,"Cottesloe","TBC on Site","10 000KN rope testing machine power pack pipelines","TBC on Site",null,"TBC","oil"]
[null,"Cottesloe","TBC on Site","15 000KN testing machine power pack pipelines","TBC on Site",null,"TBC","oil"]
[null,{"$f":"'[1]Pressure equipment'!A150","v":"Cottesloe"},{"$f":"'[1]Pressure equipment'!B150","v":"20911"},{"$f":"'[1]Pressure equipment'!C150","v":"Pressure Vessel"},{"$f":"'[1]Pressure equipment'!D150","v":"1100 Kpa"},{"$f":"'[1]Pressure equipment'!F150","v":2009},"TBC","Air"]
[null,{"$f":"'[1]Pressure equipment'!A151","v":"Cottesloe"},{"$f":"'[1]Pressure equipment'!B151","v":"1229GR-B"},{"$f":"'[1]Pressure equipment'!C151","v":"Pressure Vessel"},{"$f":"'[1]Pressure equipment'!D151","v":"689.4 Kpa"},{"$f":"'[1]Pressure equipment'!F151","v":1953},"TBC","Air"]
[null,{"$f":"'[1]Pressure equipment'!A152","v":"BLd 23"},{"$f":"'[1]Pressure equipment'!B152","v":32522},{"$f":"'[1]Pressure equipment'!C152","v":"Pressure vessel"},{"$f":"'[1]Pressure equipment'!D152","v":"1100Kpa"},{"$f":"'[1]Pressure equipment'!F152","v":2014},"TBC","Air"]